[Event "Titled Tuesday Blitz June 1 2021"]
[White "Oparin, Grigoriy"]
[Black "Manafov, Vugar"]
[WhiteFideId "24125890"]
[BlackFideId "13410814"]
[WhiteElo "2628"]
[BlackElo "2274"]
[Result "1/2-1/2"]
[Round "06"]
[TimeControl "180+1"]
[Date "2021.06.01"]
[WhiteClock "0:00:08"]
[BlackClock "0:00:08"]

1. f4 {[%clk 0:03:00]}  Nf6 {[%clk 0:02:57]} 2. Nf3 {[%clk 0:03:01]}  g6 {[%clk 0:02:57]} 3. g3 {[%clk 0:03:01]}  Bg7 {[%clk 0:02:57]} 4. Bg2 {[%clk 0:03:02]}  O-O {[%clk 0:02:58]} 5. O-O {[%clk 0:03:03]}  d6 {[%clk 0:02:58]} 6. d3 {[%clk 0:03:03]}  Nc6 {[%clk 0:02:57]} 7. e4 {[%clk 0:03:03]}  e5 {[%clk 0:02:57]} 8. Nc3 {[%clk 0:03:02]}  exf4 {[%clk 0:02:53]} 9. Bxf4 {[%clk 0:03:01]}  Nh5 {[%clk 0:02:53]} 10. Bg5 {[%clk 0:03:01]}  f6 {[%clk 0:02:47]} 11. Be3 {[%clk 0:03:01]}  f5 {[%clk 0:02:47]} 12. Qd2 {[%clk 0:03:02]}  fxe4 {[%clk 0:02:44]} 13. Nxe4 {[%clk 0:03:03]}  Bf5 {[%clk 0:02:44]} 14. Nh4 {[%clk 0:02:57]}  Bxe4 {[%clk 0:02:37]} 15. Bxe4 {[%clk 0:02:58]}  Ne5 {[%clk 0:02:36]} 16. d4 {[%clk 0:02:52]}  Ng4 {[%clk 0:02:29]} 17. Bg5 {[%clk 0:02:52]}  Qd7 {[%clk 0:02:26]} 18. Bxb7 {[%clk 0:02:49]}  Rab8 {[%clk 0:02:24]} 19. Bd5+ {[%clk 0:02:50]}  Kh8 {[%clk 0:02:25]} 20. c3 {[%clk 0:02:45]}  Rxf1+ {[%clk 0:02:17]} 21. Rxf1 {[%clk 0:02:45]}  Qb5 {[%clk 0:01:59]} 22. Bf3 {[%clk 0:02:28]}  Nxh2 {[%clk 0:01:59]} 23. Qxh2 {[%clk 0:02:03]}  Qxg5 {[%clk 0:01:58]} 24. Bxh5 {[%clk 0:02:03]}  Qxh5 {[%clk 0:01:59]} 25. Qf2 {[%clk 0:01:55]}  Qg5 {[%clk 0:01:48]} 26. Ng2 {[%clk 0:01:51]}  Rf8 {[%clk 0:01:35]} 27. Qe1 {[%clk 0:01:51]}  Rxf1+ {[%clk 0:01:34]} 28. Kxf1 {[%clk 0:01:52]}  Qf5+ {[%clk 0:01:32]} 29. Kg1 {[%clk 0:01:51]}  h5 {[%clk 0:01:31]} 30. Nh4 {[%clk 0:01:48]}  Qc2 {[%clk 0:01:28]} 31. Qf2 {[%clk 0:01:45]}  Qb1+ {[%clk 0:01:26]} 32. Kh2 {[%clk 0:01:44]}  Kh7 {[%clk 0:01:26]} 33. a3 {[%clk 0:01:42]}  a5 {[%clk 0:01:22]} 34. a4 {[%clk 0:01:41]}  Qa2 {[%clk 0:01:15]} 35. Qe2 {[%clk 0:01:37]}  Bf6 {[%clk 0:01:06]} 36. Ng2 {[%clk 0:01:36]}  Qxa4 {[%clk 0:01:05]} 37. Nf4 {[%clk 0:01:35]}  Qd7 {[%clk 0:01:02]} 38. Ne6 {[%clk 0:01:18]}  Qe7 {[%clk 0:00:55]} 39. Qe4 {[%clk 0:01:17]}  h4 {[%clk 0:00:45]} 40. g4 {[%clk 0:01:15]}  Kh6 {[%clk 0:00:42]} 41. Kh3 {[%clk 0:01:11]}  Bg5 {[%clk 0:00:39]} 42. d5 {[%clk 0:00:49]}  Qf6 {[%clk 0:00:39]} 43. Kg2 {[%clk 0:00:49]}  Bc1 {[%clk 0:00:26]} 44. b3 {[%clk 0:00:46]}  Qxc3 {[%clk 0:00:25]} 45. Qf3 {[%clk 0:00:36]}  Qxf3+ {[%clk 0:00:13]} 46. Kxf3 {[%clk 0:00:37]}  Bd2 {[%clk 0:00:12]} 47. Kg2 {[%clk 0:00:31]}  g5 {[%clk 0:00:11]} 48. Kf3 {[%clk 0:00:31]}  Kg6 {[%clk 0:00:11]} 49. Nxc7 {[%clk 0:00:28]}  Kf6 {[%clk 0:00:11]} 50. Ke4 {[%clk 0:00:28]}  h3 {[%clk 0:00:08]} 51. Kf3 {[%clk 0:00:28]}  h2 {[%clk 0:00:08]} 52. Kg2 {[%clk 0:00:28]}  Bf4 {[%clk 0:00:09]} 53. Na8 {[%clk 0:00:14]}  Ke5 {[%clk 0:00:09]} 54. Nb6 {[%clk 0:00:15]}  Kd4 {[%clk 0:00:07]} 55. Kh1 {[%clk 0:00:10]}  Kc3 {[%clk 0:00:06]} 56. Nc4 {[%clk 0:00:02]}  a4 {[%clk 0:00:07]} 57. Nxd6 {[%clk 0:00:03]}  Bxd6 {[%clk 0:00:03]} 58. bxa4 {[%clk 0:00:04]}  Kb4 {[%clk 0:00:04]} 59. Kg2 {[%clk 0:00:04]}  Kxa4 {[%clk 0:00:04]} 60. Kh1 {[%clk 0:00:04]}  Kb4 {[%clk 0:00:05]} 61. Kg2 {[%clk 0:00:05]}  Kc4 {[%clk 0:00:06]} 62. Kh1 {[%clk 0:00:06]}  Kxd5 {[%clk 0:00:07]} 63. Kg2 {[%clk 0:00:07]}  Ke4 {[%clk 0:00:07]} 64. Kh1 {[%clk 0:00:08]}  Kf3 {[%clk 0:00:08]} 1/2-1/2


[Site "https://www.chess.com"]

[Event "Titled Tuesday Blitz June 1 2021"]
[White "Perez Ponsa, Federico"]
[Black "Can, Emre"]
[WhiteFideId "117927"]
[BlackFideId "6302181"]
[WhiteElo "2672"]
[BlackElo "2503"]
[Result "1-0"]
[Round "06"]
[TimeControl "180+1"]
[Date "2021.06.01"]
[WhiteClock "0:00:07"]
[BlackClock "0:00:29"]

1. e4 {[%clk 0:02:57]}  c5 {[%clk 0:02:59]} 2. Nf3 {[%clk 0:02:56]}  d6 {[%clk 0:03:00]} 3. Bb5+ {[%clk 0:02:55]}  Bd7 {[%clk 0:03:00]} 4. Bxd7+ {[%clk 0:02:53]}  Qxd7 {[%clk 0:03:01]} 5. c4 {[%clk 0:02:53]}  Nf6 {[%clk 0:02:56]} 6. Nc3 {[%clk 0:02:52]}  g6 {[%clk 0:02:57]} 7. O-O {[%clk 0:02:43]}  Bg7 {[%clk 0:02:56]} 8. d3 {[%clk 0:02:42]}  O-O {[%clk 0:02:56]} 9. h3 {[%clk 0:02:41]}  Nc6 {[%clk 0:02:56]} 10. Be3 {[%clk 0:02:40]}  a6 {[%clk 0:02:56]} 11. Qd2 {[%clk 0:02:40]}  Rab8 {[%clk 0:02:55]} 12. Rfe1 {[%clk 0:02:10]}  b5 {[%clk 0:02:52]} 13. Rad1 {[%clk 0:01:46]}  Rfd8 {[%clk 0:02:44]} 14. b3 {[%clk 0:01:36]}  e6 {[%clk 0:02:17]} 15. Bh6 {[%clk 0:01:18]}  Bh8 {[%clk 0:02:15]} 16. Qc1 {[%clk 0:00:57]}  Qc7 {[%clk 0:02:07]} 17. Bg5 {[%clk 0:00:40]}  Re8 {[%clk 0:02:07]} 18. Bf4 {[%clk 0:00:20]}  Nd7 {[%clk 0:02:04]} 19. Ne2 {[%clk 0:00:19]}  Nde5 {[%clk 0:01:59]} 20. Nxe5 {[%clk 0:00:18]}  Nxe5 {[%clk 0:01:59]} 21. Be3 {[%clk 0:00:11]}  Nc6 {[%clk 0:01:49]} 22. Ng3 {[%clk 0:00:08]}  a5 {[%clk 0:01:44]} 23. h4 {[%clk 0:00:05]}  a4 {[%clk 0:01:41]} 24. h5 {[%clk 0:00:05]}  Nd4 {[%clk 0:01:35]} 25. hxg6 {[%clk 0:00:02]}  hxg6 {[%clk 0:01:36]} 26. Bxd4 {[%clk 0:00:02]}  Bxd4 {[%clk 0:01:35]} 27. Ne2 {[%clk 0:00:03]}  Be5 {[%clk 0:01:33]} 28. Qe3 {[%clk 0:00:03]}  Kg7 {[%clk 0:01:33]} 29. f4 {[%clk 0:00:03]}  Bf6 {[%clk 0:01:32]} 30. g3 {[%clk 0:00:04]}  axb3 {[%clk 0:01:31]} 31. axb3 {[%clk 0:00:04]}  bxc4 {[%clk 0:01:31]} 32. dxc4 {[%clk 0:00:05]}  Rh8 {[%clk 0:01:27]} 33. Kg2 {[%clk 0:00:05]}  Qb6 {[%clk 0:01:18]} 34. Rd3 {[%clk 0:00:05]}  Rh7 {[%clk 0:01:16]} 35. Ng1 {[%clk 0:00:05]}  Bd4 {[%clk 0:01:13]} 36. Qe2 {[%clk 0:00:05]}  Bxg1 {[%clk 0:01:08]} 37. Rxg1 {[%clk 0:00:06]}  Rbh8 {[%clk 0:01:07]} 38. Kf3 {[%clk 0:00:05]}  Qb7 {[%clk 0:01:06]} 39. Qb2+ {[%clk 0:00:05]}  f6 {[%clk 0:00:44]} 40. Rxd6 {[%clk 0:00:06]}  Rh2 {[%clk 0:00:43]} 41. Qc3 {[%clk 0:00:06]}  Re2 {[%clk 0:00:38]} 42. Kxe2 {[%clk 0:00:04]}  Qxe4+ {[%clk 0:00:37]} 43. Kf1 {[%clk 0:00:03]}  Rh2 {[%clk 0:00:36]} 44. Rd7+ {[%clk 0:00:03]}  Kg8 {[%clk 0:00:32]} 45. Qd3 {[%clk 0:00:03]}  Qxd3+ {[%clk 0:00:29]} 46. Rxd3 {[%clk 0:00:04]}  Rb2 {[%clk 0:00:29]} 47. Re3 {[%clk 0:00:04]}  Kf7 {[%clk 0:00:29]} 48. Rg2 {[%clk 0:00:04]}  Rb1+ {[%clk 0:00:29]} 49. Kf2 {[%clk 0:00:04]}  g5 {[%clk 0:00:30]} 50. fxg5 {[%clk 0:00:04]}  fxg5 {[%clk 0:00:31]} 51. g4 {[%clk 0:00:05]}  Kf6 {[%clk 0:00:30]} 52. Kf3 {[%clk 0:00:06]}  e5 {[%clk 0:00:30]} 53. Rge2 {[%clk 0:00:07]}  Rf1+ {[%clk 0:00:29]} 54. Kg2 {[%clk 0:00:07]} 1-0


[Site "https://www.chess.com"]

[Event "Titled Tuesday Blitz June 1 2021"]
[White "Quparadze, Giga"]
[Black "Sumets, Andrey"]
[WhiteFideId "13602250"]
[BlackFideId "14105500"]
[WhiteElo "2658"]
[BlackElo "2619"]
[Result "0-1"]
[Round "06"]
[TimeControl "180+1"]
[Date "2021.06.01"]
[WhiteClock "0:01:21"]
[BlackClock "0:00:54"]

1. e4 {[%clk 0:03:00]}  e6 {[%clk 0:02:56]} 2. d4 {[%clk 0:03:00]}  d5 {[%clk 0:02:56]} 3. Nd2 {[%clk 0:03:00]}  c5 {[%clk 0:02:55]} 4. Ngf3 {[%clk 0:03:00]}  Nf6 {[%clk 0:02:52]} 5. exd5 {[%clk 0:02:46]}  Nxd5 {[%clk 0:02:49]} 6. dxc5 {[%clk 0:02:34]}  Bxc5 {[%clk 0:02:49]} 7. Ne4 {[%clk 0:02:34]}  Be7 {[%clk 0:02:34]} 8. c3 {[%clk 0:02:31]}  O-O {[%clk 0:02:33]} 9. Bd3 {[%clk 0:02:30]}  Nd7 {[%clk 0:02:28]} 10. Qe2 {[%clk 0:02:30]}  Qc7 {[%clk 0:02:26]} 11. O-O {[%clk 0:02:29]}  b6 {[%clk 0:02:26]} 12. Nd4 {[%clk 0:02:20]}  Bb7 {[%clk 0:02:17]} 13. Bc2 {[%clk 0:02:16]}  Rad8 {[%clk 0:02:08]} 14. Re1 {[%clk 0:02:16]}  N7f6 {[%clk 0:01:48]} 15. Bg5 {[%clk 0:02:03]}  h6 {[%clk 0:01:47]} 16. Nxf6+ {[%clk 0:02:01]}  Bxf6 {[%clk 0:01:46]} 17. Bxf6 {[%clk 0:02:01]}  Nxf6 {[%clk 0:01:45]} 18. Qe5 {[%clk 0:01:57]}  Qc8 {[%clk 0:01:32]} 19. Qg3 {[%clk 0:01:56]}  Rd5 {[%clk 0:01:30]} 20. Re5 {[%clk 0:01:52]}  Rxd4 {[%clk 0:01:28]} 21. cxd4 {[%clk 0:01:47]}  Qxc2 {[%clk 0:01:27]} 22. Qb3 {[%clk 0:01:41]}  Rc8 {[%clk 0:01:22]} 23. h3 {[%clk 0:01:38]}  Bd5 {[%clk 0:01:11]} 24. Qa3 {[%clk 0:01:32]}  a5 {[%clk 0:01:05]} 25. Re3 {[%clk 0:01:32]}  Ne4 {[%clk 0:01:01]} 26. f3 {[%clk 0:01:30]}  Qf2+ {[%clk 0:00:58]} 27. Kh2 {[%clk 0:01:21]}  Rc2 {[%clk 0:00:54]} 0-1


[Site "https://www.chess.com"]

[Event "Titled Tuesday Blitz June 1 2021"]
[White "Triapishko, Alexandr"]
[Black "Willychess95"]
[WhiteFideId "14122286"]
[WhiteElo "2490"]
[BlackElo "2651"]
[Result "1-0"]
[Round "06"]
[TimeControl "180+1"]
[Date "2021.06.01"]
[WhiteClock "0:00:54"]
[BlackClock "0:00:10"]

1. Nf3 {[%clk 0:03:00]}  c5 {[%clk 0:02:59]} 2. c4 {[%clk 0:03:00]}  Nc6 {[%clk 0:02:57]} 3. Nc3 {[%clk 0:03:00]}  g6 {[%clk 0:02:55]} 4. e3 {[%clk 0:03:00]}  Bg7 {[%clk 0:02:52]} 5. d4 {[%clk 0:03:01]}  cxd4 {[%clk 0:02:51]} 6. exd4 {[%clk 0:03:01]}  d6 {[%clk 0:02:47]} 7. d5 {[%clk 0:02:59]}  Ne5 {[%clk 0:02:46]} 8. Nxe5 {[%clk 0:02:58]}  Bxe5 {[%clk 0:02:47]} 9. Bd3 {[%clk 0:02:58]}  Bd7 {[%clk 0:02:36]} 10. O-O {[%clk 0:02:49]}  Qb6 {[%clk 0:02:21]} 11. a4 {[%clk 0:02:25]}  a5 {[%clk 0:02:14]} 12. Ra3 {[%clk 0:02:09]}  Nf6 {[%clk 0:01:41]} 13. Rb3 {[%clk 0:02:05]}  Qc7 {[%clk 0:01:42]} 14. h3 {[%clk 0:01:46]}  Bf5 {[%clk 0:01:25]} 15. Nb5 {[%clk 0:01:15]}  Qc8 {[%clk 0:01:13]} 16. f4 {[%clk 0:01:00]}  Bxd3 {[%clk 0:00:50]} 17. Qxd3 {[%clk 0:00:57]}  Nd7 {[%clk 0:00:38]} 18. fxe5 {[%clk 0:00:54]}  Nc5 {[%clk 0:00:35]} 19. Qf3 {[%clk 0:00:54]}  Nxb3 {[%clk 0:00:10]} 20. Nxd6+ {[%clk 0:00:54]} 1-0


[Site "https://www.chess.com"]

[Event "Titled Tuesday Blitz June 1 2021"]
[White "Zierk, Steven"]
[Black "Nakamura, Hikaru"]
[WhiteFideId "2034255"]
[BlackFideId "2016192"]
[WhiteElo "2502"]
[BlackElo "2900"]
[Result "0-1"]
[Round "06"]
[TimeControl "180+1"]
[Date "2021.06.01"]
[WhiteClock "0:00:18"]
[BlackClock "0:00:34"]

1. e4 {[%clk 0:03:00]}  c5 {[%clk 0:02:57]} 2. Nf3 {[%clk 0:03:00]}  d6 {[%clk 0:02:57]} 3. d4 {[%clk 0:03:01]}  cxd4 {[%clk 0:02:58]} 4. Nxd4 {[%clk 0:03:01]}  Nf6 {[%clk 0:02:58]} 5. f3 {[%clk 0:03:02]}  e5 {[%clk 0:02:35]} 6. Nb3 {[%clk 0:03:01]}  a5 {[%clk 0:02:31]} 7. Nc3 {[%clk 0:03:01]}  Be6 {[%clk 0:02:25]} 8. Bb5+ {[%clk 0:02:53]}  Nbd7 {[%clk 0:02:24]} 9. Be3 {[%clk 0:02:50]}  Be7 {[%clk 0:02:24]} 10. O-O {[%clk 0:02:42]}  O-O {[%clk 0:02:23]} 11. Nd5 {[%clk 0:02:35]}  Bxd5 {[%clk 0:02:12]} 12. exd5 {[%clk 0:02:36]}  a4 {[%clk 0:02:13]} 13. Nc1 {[%clk 0:02:33]}  Nb6 {[%clk 0:02:07]} 14. c4 {[%clk 0:02:29]}  Qc7 {[%clk 0:01:56]} 15. Qe2 {[%clk 0:02:14]}  Rfc8 {[%clk 0:01:51]} 16. Nd3 {[%clk 0:02:14]}  Qd8 {[%clk 0:01:47]} 17. Rfc1 {[%clk 0:02:05]}  Nfd7 {[%clk 0:01:45]} 18. b4 {[%clk 0:02:00]}  axb3 {[%clk 0:01:43]} 19. axb3 {[%clk 0:02:01]}  Bg5 {[%clk 0:01:41]} 20. Qd2 {[%clk 0:01:46]}  Bxe3+ {[%clk 0:01:40]} 21. Qxe3 {[%clk 0:01:47]}  Nf6 {[%clk 0:01:36]} 22. Qe1 {[%clk 0:01:27]}  Nbxd5 {[%clk 0:01:30]} 23. Kh1 {[%clk 0:01:10]}  Nc7 {[%clk 0:01:25]} 24. Ba4 {[%clk 0:01:10]}  Ne6 {[%clk 0:01:19]} 25. c5 {[%clk 0:01:06]}  Nxc5 {[%clk 0:00:59]} 26. Nxc5 {[%clk 0:01:06]}  Rxc5 {[%clk 0:00:59]} 27. Rxc5 {[%clk 0:01:06]}  dxc5 {[%clk 0:01:00]} 28. Qxe5 {[%clk 0:01:07]}  Qd4 {[%clk 0:00:57]} 29. Qxd4 {[%clk 0:01:03]}  cxd4 {[%clk 0:00:58]} 30. Rd1 {[%clk 0:01:02]}  g6 {[%clk 0:00:58]} 31. Kg1 {[%clk 0:00:56]}  Ra5 {[%clk 0:00:48]} 32. Rc1 {[%clk 0:00:35]}  d3 {[%clk 0:00:37]} 33. Kf2 {[%clk 0:00:30]}  Re5 {[%clk 0:00:35]} 34. Re1 {[%clk 0:00:23]}  d2 {[%clk 0:00:33]} 35. Rd1 {[%clk 0:00:21]}  b5 {[%clk 0:00:33]} 36. Rxd2 {[%clk 0:00:22]}  bxa4 {[%clk 0:00:33]} 37. bxa4 {[%clk 0:00:23]}  Ra5 {[%clk 0:00:34]} 38. Rd4 {[%clk 0:00:19]}  Nd5 {[%clk 0:00:34]} 39. Rd2 {[%clk 0:00:17]}  Nb6 {[%clk 0:00:34]} 40. Rb2 {[%clk 0:00:17]}  Nxa4 {[%clk 0:00:34]} 41. Ra2 {[%clk 0:00:18]}  Ra6 {[%clk 0:00:34]} 0-1


[Site "https://www.chess.com"]

[Event "Titled Tuesday Blitz June 1 2021"]
[White "Balakrishnan, Praveen"]
[Black "Jakubowski, Krzysztof"]
[WhiteFideId "2064871"]
[BlackFideId "1112848"]
[WhiteElo "2809"]
[BlackElo "2602"]
[Result "1-0"]
[Round "07"]
[TimeControl "180+1"]
[Date "2021.06.01"]
[WhiteClock "0:00:12"]
[BlackClock "0:00:02"]

1. b4 {[%clk 0:03:00]}  e5 {[%clk 0:02:51]} 2. Bb2 {[%clk 0:02:56]}  f6 {[%clk 0:02:43]} 3. b5 {[%clk 0:02:44]}  a6 {[%clk 0:02:39]} 4. e4 {[%clk 0:02:35]}  Nh6 {[%clk 0:02:27]} 5. a4 {[%clk 0:02:24]}  axb5 {[%clk 0:02:18]} 6. axb5 {[%clk 0:02:25]}  Rxa1 {[%clk 0:02:17]} 7. Bxa1 {[%clk 0:02:26]}  d5 {[%clk 0:02:17]} 8. exd5 {[%clk 0:02:17]}  Qxd5 {[%clk 0:02:18]} 9. Nc3 {[%clk 0:02:17]}  Qf7 {[%clk 0:02:12]} 10. Nf3 {[%clk 0:02:17]}  Be7 {[%clk 0:02:00]} 11. d4 {[%clk 0:02:16]}  exd4 {[%clk 0:01:53]} 12. Qxd4 {[%clk 0:02:16]}  Be6 {[%clk 0:01:50]} 13. Qa7 {[%clk 0:02:03]}  O-O {[%clk 0:01:42]} 14. Qxb7 {[%clk 0:02:03]}  Bb4 {[%clk 0:01:37]} 15. Qe4 {[%clk 0:01:53]}  Qe7 {[%clk 0:00:53]} 16. Bd3 {[%clk 0:01:33]}  f5 {[%clk 0:00:40]} 17. Qe2 {[%clk 0:01:12]}  Re8 {[%clk 0:00:38]} 18. O-O {[%clk 0:01:10]}  Qc5 {[%clk 0:00:36]} 19. Na4 {[%clk 0:00:49]}  Qa7 {[%clk 0:00:36]} 20. Qe5 {[%clk 0:00:47]}  Bf8 {[%clk 0:00:32]} 21. Nc3 {[%clk 0:00:39]}  Nd7 {[%clk 0:00:32]} 22. Qg3 {[%clk 0:00:39]}  Nc5 {[%clk 0:00:28]} 23. Be2 {[%clk 0:00:36]}  Ng4 {[%clk 0:00:25]} 24. Nd1 {[%clk 0:00:30]}  Bd6 {[%clk 0:00:23]} 25. Qh4 {[%clk 0:00:29]}  Be7 {[%clk 0:00:22]} 26. Qg3 {[%clk 0:00:27]}  Ne4 {[%clk 0:00:17]} 27. Qf4 {[%clk 0:00:22]}  Bd6 {[%clk 0:00:14]} 28. Qc1 {[%clk 0:00:22]}  Bc5 {[%clk 0:00:13]} 29. Qb2 {[%clk 0:00:20]}  Re7 {[%clk 0:00:12]} 30. Nd4 {[%clk 0:00:21]}  Bd7 {[%clk 0:00:06]} 31. Bxg4 {[%clk 0:00:18]}  fxg4 {[%clk 0:00:06]} 32. Ne3 {[%clk 0:00:19]}  h5 {[%clk 0:00:03]} 33. Ndf5 {[%clk 0:00:11]}  Bxf5 {[%clk 0:00:01]} 34. Nxf5 {[%clk 0:00:12]}  Rf7 {[%clk 0:00:01]} 35. Nh6+ {[%clk 0:00:10]}  Kf8 {[%clk 0:00:01]} 36. Nxf7 {[%clk 0:00:11]}  Bxf2+ {[%clk 0:00:01]} 37. Kh1 {[%clk 0:00:11]}  Kxf7 {[%clk 0:00:01]} 38. Qxg7+ {[%clk 0:00:12]}  Ke6 {[%clk 0:00:02]} 39. Qg6+ {[%clk 0:00:12]}  Kd5 {[%clk 0:00:02]} 40. Qf5+ {[%clk 0:00:12]} 1-0


[Site "https://www.chess.com"]

[Event "Titled Tuesday Blitz June 1 2021"]
[White "Bruned, Yvain"]
[Black "Gelman, Alexander"]
[WhiteFideId "2250292"]
[BlackFideId "4118316"]
[WhiteElo "2073"]
[BlackElo "2375"]
[Result "0-1"]
[Round "07"]
[TimeControl "180+1"]
[Date "2021.06.01"]
[WhiteClock "0:00:01"]
[BlackClock "0:00:12"]

1. b3 {[%clk 0:03:00]}  b6 {[%clk 0:02:58]} 2. Bb2 {[%clk 0:02:59]}  Bb7 {[%clk 0:02:59]} 3. e3 {[%clk 0:03:00]}  e6 {[%clk 0:02:58]} 4. Nf3 {[%clk 0:03:00]}  Nf6 {[%clk 0:02:58]} 5. Be2 {[%clk 0:03:00]}  c5 {[%clk 0:02:57]} 6. O-O {[%clk 0:03:00]}  d6 {[%clk 0:02:57]} 7. d4 {[%clk 0:03:00]}  Nbd7 {[%clk 0:02:57]} 8. c4 {[%clk 0:03:01]}  a6 {[%clk 0:02:57]} 9. Nbd2 {[%clk 0:03:02]}  Qc7 {[%clk 0:02:57]} 10. Rc1 {[%clk 0:03:02]}  Rg8 {[%clk 0:02:56]} 11. a3 {[%clk 0:02:48]}  g5 {[%clk 0:02:56]} 12. Ne1 {[%clk 0:02:49]}  g4 {[%clk 0:02:56]} 13. b4 {[%clk 0:02:47]}  h5 {[%clk 0:02:56]} 14. dxc5 {[%clk 0:02:43]}  dxc5 {[%clk 0:02:56]} 15. bxc5 {[%clk 0:01:44]}  bxc5 {[%clk 0:02:49]} 16. f4 {[%clk 0:01:22]}  h4 {[%clk 0:02:30]} 17. e4 {[%clk 0:01:10]}  Nxe4 {[%clk 0:02:11]} 18. Nxe4 {[%clk 0:01:09]}  Bxe4 {[%clk 0:02:12]} 19. Bxg4 {[%clk 0:01:06]}  Rb8 {[%clk 0:01:50]} 20. Bc3 {[%clk 0:00:58]}  Bd6 {[%clk 0:01:41]} 21. Bf3 {[%clk 0:00:39]}  Bxf3 {[%clk 0:01:28]} 22. Qxf3 {[%clk 0:00:37]}  Rb3 {[%clk 0:01:06]} 23. Qa8+ {[%clk 0:00:26]}  Nb8 {[%clk 0:01:07]} 24. Be5 {[%clk 0:00:20]}  Bxe5 {[%clk 0:00:56]} 25. fxe5 {[%clk 0:00:21]}  Qxe5 {[%clk 0:00:56]} 26. Nf3 {[%clk 0:00:11]}  Qe3+ {[%clk 0:00:41]} 27. Kh1 {[%clk 0:00:11]}  Qe2 {[%clk 0:00:37]} 28. Nxh4 {[%clk 0:00:08]}  Rb2 {[%clk 0:00:25]} 29. Qa7 {[%clk 0:00:06]}  Nd7 {[%clk 0:00:19]} 30. Qa8+ {[%clk 0:00:05]}  Nb8 {[%clk 0:00:18]} 31. Qa7 {[%clk 0:00:05]}  Rg7 {[%clk 0:00:18]} 32. Qc7 {[%clk 0:00:03]}  Nd7 {[%clk 0:00:15]} 33. Qf4 {[%clk 0:00:02]}  Rxg2 {[%clk 0:00:13]} 34. Qxf7+ {[%clk 0:00:01]}  Kd8 {[%clk 0:00:13]} 35. Qg8+ {[%clk 0:00:01]}  Rxg8 {[%clk 0:00:12]} 0-1


[Site "https://www.chess.com"]

[Event "Titled Tuesday Blitz June 1 2021"]
[White "Cunjalo, Faris"]
[Black "Ghimpu, Samuel-Timotei"]
[WhiteFideId "14410710"]
[BlackFideId "1238175"]
[WhiteElo "2234"]
[BlackElo "2026"]
[Result "1-0"]
[Round "07"]
[TimeControl "180+1"]
[Date "2021.06.01"]
[WhiteClock "0:01:02"]
[BlackClock "0:00:13"]

1. d4 {[%clk 0:03:00]}  Nf6 {[%clk 0:02:59]} 2. c4 {[%clk 0:03:01]}  g6 {[%clk 0:02:59]} 3. Nc3 {[%clk 0:03:00]}  d5 {[%clk 0:02:59]} 4. Nf3 {[%clk 0:02:56]}  Bg7 {[%clk 0:02:59]} 5. cxd5 {[%clk 0:02:57]}  Nxd5 {[%clk 0:02:58]} 6. Na4 {[%clk 0:02:57]}  Bf5 {[%clk 0:02:52]} 7. Nc5 {[%clk 0:02:51]}  b6 {[%clk 0:02:42]} 8. e4 {[%clk 0:02:41]}  bxc5 {[%clk 0:02:41]} 9. exf5 {[%clk 0:02:41]}  cxd4 {[%clk 0:02:40]} 10. Nxd4 {[%clk 0:02:39]}  O-O {[%clk 0:02:39]} 11. fxg6 {[%clk 0:02:37]}  hxg6 {[%clk 0:02:38]} 12. Be2 {[%clk 0:02:35]}  Nb4 {[%clk 0:02:13]} 13. a3 {[%clk 0:02:08]}  Qxd4 {[%clk 0:02:06]} 14. axb4 {[%clk 0:02:08]}  Qxb4+ {[%clk 0:02:05]} 15. Bd2 {[%clk 0:02:08]}  Qxb2 {[%clk 0:02:04]} 16. Rb1 {[%clk 0:02:09]}  Qf6 {[%clk 0:02:02]} 17. Bf3 {[%clk 0:02:00]}  c6 {[%clk 0:01:45]} 18. O-O {[%clk 0:02:00]}  Nd7 {[%clk 0:01:44]} 19. Qa4 {[%clk 0:01:51]}  Ne5 {[%clk 0:01:41]} 20. Be4 {[%clk 0:01:51]}  Rfd8 {[%clk 0:01:37]} 21. Bc3 {[%clk 0:01:34]}  a5 {[%clk 0:01:12]} 22. f4 {[%clk 0:01:29]}  Qd6 {[%clk 0:00:56]} 23. Bxe5 {[%clk 0:01:26]}  Bxe5 {[%clk 0:00:46]} 24. fxe5 {[%clk 0:01:27]}  Qxe5 {[%clk 0:00:46]} 25. Bxc6 {[%clk 0:01:26]}  Rab8 {[%clk 0:00:44]} 26. Rbe1 {[%clk 0:01:22]}  Qc5+ {[%clk 0:00:39]} 27. Kh1 {[%clk 0:01:22]}  Rb4 {[%clk 0:00:40]} 28. Qa2 {[%clk 0:01:18]}  e6 {[%clk 0:00:40]} 29. Bf3 {[%clk 0:01:10]}  Kg7 {[%clk 0:00:38]} 30. Rc1 {[%clk 0:01:08]}  Qe5 {[%clk 0:00:34]} 31. Rfe1 {[%clk 0:01:08]}  Qf4 {[%clk 0:00:30]} 32. Qxa5 {[%clk 0:01:04]}  Rb2 {[%clk 0:00:13]} 33. Qxd8 {[%clk 0:01:02]} 1-0


[Site "https://www.chess.com"]